[Event "Titled Tuesday Blitz November 07 Early 2023"]
[White "Akhmedinov, Satbek"]
[Black "Slade, Theodore"]
[WhiteFideId "13714287"]
[BlackFideId "426547"]
[WhiteElo "2706"]
[BlackElo "2539"]
[Result "1-0"]
[Round "6"]
[TimeControl "180+1"]
[Date "2023.11.07"]
[WhiteClock "0:01:58"]
[BlackClock "0:01:14"]
[Board "73"]

1. e4 {[%clk 0:03:00]}  e5 {[%clk 0:02:59]} 2. Nf3 {[%clk 0:03:01]}  Nc6 {[%clk 0:03:00]} 3. Bc4 {[%clk 0:03:02]}  Bc5 {[%clk 0:03:00]} 4. c3 {[%clk 0:03:02]}  Nf6 {[%clk 0:03:00]} 5. d3 {[%clk 0:03:03]}  d6 {[%clk 0:03:00]} 6. O-O {[%clk 0:03:03]}  O-O {[%clk 0:03:01]} 7. h3 {[%clk 0:03:04]}  Bb6 {[%clk 0:02:57]} 8. Re1 {[%clk 0:03:02]}  Ne7 {[%clk 0:02:55]} 9. d4 {[%clk 0:03:02]}  exd4 {[%clk 0:02:39]} 10. cxd4 {[%clk 0:03:01]}  Ng6 {[%clk 0:02:25]} 11. Nc3 {[%clk 0:03:00]}  c6 {[%clk 0:02:21]} 12. e5 {[%clk 0:02:51]}  Nh5 {[%clk 0:02:10]} 13. Bg5 {[%clk 0:02:50]}  Qc7 {[%clk 0:02:05]} 14. Nh4 {[%clk 0:02:44]}  Nhf4 {[%clk 0:02:01]} 15. Nxg6 {[%clk 0:02:43]}  Nxg6 {[%clk 0:01:59]} 16. Qh5 {[%clk 0:02:32]}  Bxd4 {[%clk 0:01:53]} 17. exd6 {[%clk 0:02:30]}  Qxd6 {[%clk 0:01:53]} 18. Ne4 {[%clk 0:02:31]}  Qc7 {[%clk 0:01:44]} 19. Rad1 {[%clk 0:02:17]}  Qb6 {[%clk 0:01:39]} 20. Be3 {[%clk 0:02:08]}  Bxe3 {[%clk 0:01:36]} 21. Rxe3 {[%clk 0:02:09]}  Be6 {[%clk 0:01:33]} 22. Ng5 {[%clk 0:02:03]}  h6 {[%clk 0:01:27]} 23. Nxe6 {[%clk 0:02:02]}  fxe6 {[%clk 0:01:22]} 24. Qxg6 {[%clk 0:02:01]}  Qxb2 {[%clk 0:01:18]} 25. Bxe6+ {[%clk 0:01:59]}  Kh8 {[%clk 0:01:18]} 26. Bf5 {[%clk 0:02:00]}  Kg8 {[%clk 0:01:14]} 27. Qh7+ {[%clk 0:01:59]}  Kf7 {[%clk 0:01:15]} 28. Rd7+ {[%clk 0:01:57]}  Kf6 {[%clk 0:01:14]} 29. Qg6# {[%clk 0:01:58]} 1-0


[Site "https://www.chess.com"]

[Event "Titled Tuesday Blitz November 07 Early 2023"]
[White "Hasangatin, Ramil"]
[Black "Mihailidis, Anastasios"]
[WhiteFideId "4122160"]
[BlackFideId "4205588"]
[WhiteElo "2704"]
[BlackElo "2538"]
[Result "1-0"]
[Round "6"]
[TimeControl "180+1"]
[Date "2023.11.07"]
[WhiteClock "0:02:28"]
[BlackClock "0:00:52"]
[Board "74"]

1. d4 {[%clk 0:03:00]}  d5 {[%clk 0:02:59]} 2. Nc3 {[%clk 0:03:01]}  Nf6 {[%clk 0:02:58]} 3. Bg5 {[%clk 0:03:01]}  e6 {[%clk 0:02:58]} 4. e4 {[%clk 0:03:01]}  dxe4 {[%clk 0:02:58]} 5. Nxe4 {[%clk 0:03:02]}  Be7 {[%clk 0:02:58]} 6. Bxf6 {[%clk 0:03:02]}  Bxf6 {[%clk 0:02:59]} 7. Nf3 {[%clk 0:03:03]}  O-O {[%clk 0:02:58]} 8. c3 {[%clk 0:03:03]}  c6 {[%clk 0:02:56]} 9. Bd3 {[%clk 0:03:04]}  h6 {[%clk 0:02:55]} 10. Qc2 {[%clk 0:03:02]}  Nd7 {[%clk 0:02:55]} 11. O-O-O {[%clk 0:03:02]}  a5 {[%clk 0:02:54]} 12. g4 {[%clk 0:03:02]}  e5 {[%clk 0:02:40]} 13. h4 {[%clk 0:02:59]}  exd4 {[%clk 0:02:28]} 14. g5 {[%clk 0:02:59]}  dxc3 {[%clk 0:02:28]} 15. gxf6 {[%clk 0:02:59]}  cxb2+ {[%clk 0:02:28]} 16. Qxb2 {[%clk 0:02:59]}  Nxf6 {[%clk 0:02:28]} 17. Nxf6+ {[%clk 0:02:59]}  Qxf6 {[%clk 0:02:28]} 18. Qxf6 {[%clk 0:02:59]}  gxf6 {[%clk 0:02:29]} 19. Rhg1+ {[%clk 0:02:57]}  Kh8 {[%clk 0:02:28]} 20. Nd4 {[%clk 0:02:53]}  Rd8 {[%clk 0:02:15]} 21. Nc2 {[%clk 0:02:49]}  Be6 {[%clk 0:02:11]} 22. Kb2 {[%clk 0:02:48]}  b5 {[%clk 0:02:07]} 23. Be4 {[%clk 0:02:46]}  Rdc8 {[%clk 0:02:05]} 24. Rd6 {[%clk 0:02:44]}  f5 {[%clk 0:01:38]} 25. Bxc6 {[%clk 0:02:40]}  Ra6 {[%clk 0:01:31]} 26. Nd4 {[%clk 0:02:40]}  a4 {[%clk 0:01:25]} 27. a3 {[%clk 0:02:33]}  b4 {[%clk 0:01:24]} 28. axb4 {[%clk 0:02:33]}  a3+ {[%clk 0:01:24]} 29. Ka1 {[%clk 0:02:34]}  a2 {[%clk 0:01:22]} 30. b5 {[%clk 0:02:31]}  Rb6 {[%clk 0:01:17]} 31. Nxe6 {[%clk 0:02:31]}  fxe6 {[%clk 0:01:17]} 32. Rxe6 {[%clk 0:02:31]}  Kh7 {[%clk 0:01:04]} 33. Kxa2 {[%clk 0:02:31]}  Rd8 {[%clk 0:01:00]} 34. Kb3 {[%clk 0:02:30]}  Rd4 {[%clk 0:00:59]} 35. h5 {[%clk 0:02:29]}  Rb8 {[%clk 0:00:58]} 36. Re7+ {[%clk 0:02:29]}  Kh8 {[%clk 0:00:58]} 37. Rg6 {[%clk 0:02:29]}  Rbd8 {[%clk 0:00:55]} 38. Re8+ {[%clk 0:02:29]}  Rxe8 {[%clk 0:00:55]} 39. Bxe8 {[%clk 0:02:30]}  Kh7 {[%clk 0:00:54]} 40. b6 {[%clk 0:02:29]}  Rd1 {[%clk 0:00:53]} 41. Bb5 {[%clk 0:02:27]}  Rb1+ {[%clk 0:00:52]} 42. Kc4 {[%clk 0:02:28]}  Rc1+ {[%clk 0:00:52]} 43. Kb4 {[%clk 0:02:28]}  Rb1+ {[%clk 0:00:53]} 44. Kc5 {[%clk 0:02:28]}  Rc1+ {[%clk 0:00:53]} 45. Bc4 {[%clk 0:02:29]}  Rb1 {[%clk 0:00:53]} 46. Rc6 {[%clk 0:02:28]}  Kg7 {[%clk 0:00:52]} 47. f4 {[%clk 0:02:28]}  Rb2 {[%clk 0:00:51]} 48. Rc7+ {[%clk 0:02:28]}  Kf6 {[%clk 0:00:52]} 49. Rf7# {[%clk 0:02:28]} 1-0


[Site "https://www.chess.com"]

[Event "Titled Tuesday Blitz November 07 Early 2023"]
[White "Shubenkova, Veronika"]
[Black "NovozhilovSemen"]
[WhiteFideId "44124040"]
[WhiteElo "2533"]
[BlackElo "2697"]
[Result "0-1"]
[Round "6"]
[TimeControl "180+1"]
[Date "2023.11.07"]
[WhiteClock "0:00:05"]
[BlackClock "0:00:14"]
[Board "75"]

1. d4 {[%clk 0:03:00]}  Nf6 {[%clk 0:02:59]} 2. e3 {[%clk 0:03:00]}  e6 {[%clk 0:03:00]} 3. f4 {[%clk 0:03:00]}  d5 {[%clk 0:02:55]} 4. Nf3 {[%clk 0:03:01]}  Bd6 {[%clk 0:02:55]} 5. Bd3 {[%clk 0:02:52]}  c5 {[%clk 0:02:54]} 6. c3 {[%clk 0:02:52]}  Nc6 {[%clk 0:02:55]} 7. O-O {[%clk 0:02:52]}  Qc7 {[%clk 0:02:55]} 8. Ne5 {[%clk 0:02:52]}  g5 {[%clk 0:02:52]} 9. fxg5 {[%clk 0:02:49]}  Bxe5 {[%clk 0:02:47]} 10. dxe5 {[%clk 0:02:49]}  Nd7 {[%clk 0:02:44]} 11. Qh5 {[%clk 0:02:41]}  Ndxe5 {[%clk 0:02:39]} 12. Bc2 {[%clk 0:02:40]}  Bd7 {[%clk 0:02:35]} 13. Na3 {[%clk 0:02:40]}  Qb6 {[%clk 0:02:29]} 14. Rb1 {[%clk 0:02:36]}  O-O-O {[%clk 0:02:28]} 15. Bd2 {[%clk 0:02:36]}  Kb8 {[%clk 0:02:09]} 16. Kh1 {[%clk 0:02:23]}  Ka8 {[%clk 0:02:08]} 17. e4 {[%clk 0:02:22]}  d4 {[%clk 0:02:04]} 18. Ba4 {[%clk 0:02:16]}  Ne7 {[%clk 0:01:59]} 19. Bxd7 {[%clk 0:02:13]}  Rxd7 {[%clk 0:02:00]} 20. cxd4 {[%clk 0:02:05]}  cxd4 {[%clk 0:02:01]} 21. Bf4 {[%clk 0:01:55]}  N7g6 {[%clk 0:01:56]} 22. Bg3 {[%clk 0:01:46]}  d3 {[%clk 0:01:46]} 23. b3 {[%clk 0:01:45]}  Qa5 {[%clk 0:01:32]} 24. Nc4 {[%clk 0:01:44]}  Nxc4 {[%clk 0:01:30]} 25. bxc4 {[%clk 0:01:45]}  d2 {[%clk 0:01:28]} 26. Qf3 {[%clk 0:01:33]}  Rhd8 {[%clk 0:01:14]} 27. Bf2 {[%clk 0:01:27]}  Ne5 {[%clk 0:01:05]} 28. Qe2 {[%clk 0:01:16]}  Qa4 {[%clk 0:00:53]} 29. Rfd1 {[%clk 0:01:09]}  Qxc4 {[%clk 0:00:52]} 30. Qe3 {[%clk 0:01:08]}  Nc6 {[%clk 0:00:46]} 31. Bg1 {[%clk 0:01:03]}  Rd3 {[%clk 0:00:43]} 32. Qf4 {[%clk 0:01:01]}  e5 {[%clk 0:00:41]} 33. Qf6 {[%clk 0:01:01]}  Qxe4 {[%clk 0:00:39]} 34. Qxf7 {[%clk 0:00:57]}  R3d7 {[%clk 0:00:37]} 35. Qf6 {[%clk 0:00:52]}  Qd5 {[%clk 0:00:25]} 36. a4 {[%clk 0:00:48]}  e4 {[%clk 0:00:23]} 37. a5 {[%clk 0:00:48]}  Qe5 {[%clk 0:00:20]} 38. Qf2 {[%clk 0:00:38]}  a6 {[%clk 0:00:14]} 39. Rb6 {[%clk 0:00:25]}  e3 {[%clk 0:00:14]} 40. Qxe3 {[%clk 0:00:23]}  Qxe3 {[%clk 0:00:14]} 41. Bxe3 {[%clk 0:00:24]}  Nxa5 {[%clk 0:00:15]} 42. Bf4 {[%clk 0:00:17]}  Rd3 {[%clk 0:00:16]} 43. g3 {[%clk 0:00:16]}  Nc4 {[%clk 0:00:16]} 44. Rb4 {[%clk 0:00:13]}  Ne3 {[%clk 0:00:16]} 45. Bxe3 {[%clk 0:00:12]}  Rxe3 {[%clk 0:00:17]} 46. Rbb1 {[%clk 0:00:12]}  Re2 {[%clk 0:00:14]} 47. Kg1 {[%clk 0:00:13]}  Rf8 {[%clk 0:00:14]} 48. h4 {[%clk 0:00:13]}  Rff2 {[%clk 0:00:14]} 49. h5 {[%clk 0:00:11]}  Rg2+ {[%clk 0:00:14]} 50. Kh1 {[%clk 0:00:12]}  Rxg3 {[%clk 0:00:15]} 51. Rf1 {[%clk 0:00:09]}  Rxg5 {[%clk 0:00:14]} 52. Rf8+ {[%clk 0:00:03]}  Ka7 {[%clk 0:00:14]} 53. Rf7 {[%clk 0:00:04]}  Re1+ {[%clk 0:00:13]} 54. Kh2 {[%clk 0:00:04]}  Rxb1 {[%clk 0:00:13]} 55. h6 {[%clk 0:00:05]}  Rh1+ {[%clk 0:00:12]} 56. Kxh1 {[%clk 0:00:04]}  d1=Q+ {[%clk 0:00:13]} 57. Kh2 {[%clk 0:00:05]}  Qh5# {[%clk 0:00:14]} 0-1


[Site "https://www.chess.com"]

[Event "Titled Tuesday Blitz November 07 Early 2023"]
[White "Hua, Lefong"]
[Black "Pham, Le Thao Nguyen"]
[WhiteFideId "2602253"]
[BlackFideId "12401226"]
[WhiteElo "2691"]
[BlackElo "2531"]
[Result "1-0"]
[Round "6"]
[TimeControl "180+1"]
[Date "2023.11.07"]
[WhiteClock "0:00:56"]
[BlackClock "0:00:06"]
[Board "78"]

1. d4 {[%clk 0:03:00]}  Nf6 {[%clk 0:02:58]} 2. c4 {[%clk 0:03:01]}  e6 {[%clk 0:02:54]} 3. Nc3 {[%clk 0:03:01]}  Bb4 {[%clk 0:02:54]} 4. f3 {[%clk 0:03:02]}  d5 {[%clk 0:02:50]} 5. a3 {[%clk 0:03:01]}  Bxc3+ {[%clk 0:02:42]} 6. bxc3 {[%clk 0:03:02]}  O-O {[%clk 0:02:37]} 7. cxd5 {[%clk 0:03:03]}  exd5 {[%clk 0:02:36]} 8. e3 {[%clk 0:03:03]}  c5 {[%clk 0:02:31]} 9. Bd3 {[%clk 0:03:03]}  b6 {[%clk 0:02:15]} 10. Ne2 {[%clk 0:03:03]}  Ba6 {[%clk 0:02:16]} 11. O-O {[%clk 0:03:03]}  Bxd3 {[%clk 0:02:15]} 12. Qxd3 {[%clk 0:03:04]}  Re8 {[%clk 0:01:53]} 13. Ng3 {[%clk 0:03:04]}  Nc6 {[%clk 0:01:53]} 14. Bb2 {[%clk 0:03:03]}  h5 {[%clk 0:01:23]} 15. Rae1 {[%clk 0:02:53]}  c4 {[%clk 0:00:38]} 16. Qc2 {[%clk 0:02:45]}  h4 {[%clk 0:00:35]} 17. Nf5 {[%clk 0:02:45]}  Nh5 {[%clk 0:00:30]} 18. e4 {[%clk 0:02:40]}  g6 {[%clk 0:00:30]} 19. Ne3 {[%clk 0:02:36]}  Ne7 {[%clk 0:00:27]} 20. e5 {[%clk 0:02:21]}  Kg7 {[%clk 0:00:20]} 21. Bc1 {[%clk 0:02:19]}  Nf4 {[%clk 0:00:18]} 22. Ng4 {[%clk 0:02:11]}  Nd3 {[%clk 0:00:19]} 23. Bh6+ {[%clk 0:02:06]}  Kh7 {[%clk 0:00:19]} 24. Qd2 {[%clk 0:02:06]}  Ng8 {[%clk 0:00:19]} 25. Bg5 {[%clk 0:02:03]}  Qd7 {[%clk 0:00:18]} 26. Bxh4 {[%clk 0:01:48]}  Nxe1 {[%clk 0:00:17]} 27. Qxe1 {[%clk 0:01:48]}  Qf5 {[%clk 0:00:18]} 28. Ne3 {[%clk 0:01:43]}  Qh5 {[%clk 0:00:17]} 29. Nxd5 {[%clk 0:01:40]}  Rac8 {[%clk 0:00:14]} 30. f4 {[%clk 0:01:31]}  Rc6 {[%clk 0:00:13]} 31. Ne3 {[%clk 0:01:27]}  b5 {[%clk 0:00:12]} 32. g4 {[%clk 0:01:23]}  Qh6 {[%clk 0:00:11]} 33. Bg5 {[%clk 0:01:24]}  Qg7 {[%clk 0:00:09]} 34. Qh4+ {[%clk 0:01:21]}  Nh6 {[%clk 0:00:10]} 35. Bf6 {[%clk 0:01:21]}  Qf8 {[%clk 0:00:08]} 36. g5 {[%clk 0:01:20]}  Rxf6 {[%clk 0:00:08]} 37. gxf6 {[%clk 0:01:13]}  Kg8 {[%clk 0:00:08]} 38. f5 {[%clk 0:01:11]}  Rc8 {[%clk 0:00:07]} 39. Qg5 {[%clk 0:01:06]}  a6 {[%clk 0:00:07]} 40. fxg6 {[%clk 0:01:06]}  fxg6 {[%clk 0:00:07]} 41. Qxg6+ {[%clk 0:01:06]}  Kh8 {[%clk 0:00:08]} 42. Rf3 {[%clk 0:01:05]}  Qg8 {[%clk 0:00:08]} 43. Rg3 {[%clk 0:01:04]}  Qxg6 {[%clk 0:00:08]} 44. Rxg6 {[%clk 0:01:05]}  Nf7 {[%clk 0:00:08]} 45. e6 {[%clk 0:01:01]}  Nd6 {[%clk 0:00:06]} 46. Kg2 {[%clk 0:00:56]} 1-0


[Site "https://www.chess.com"]

[Event "Titled Tuesday Blitz November 07 Early 2023"]
[White "Koellner, Ruben Gideon"]
[Black "Alinasab, Mobina"]
[WhiteFideId "12993093"]
[BlackFideId "12528897"]
[WhiteElo "2686"]
[BlackElo "2531"]
[Result "1-0"]
[Round "6"]
[TimeControl "180+1"]
[Date "2023.11.07"]
[WhiteClock "0:01:46"]
[BlackClock "0:00:35"]
[Board "79"]

1. d4 {[%clk 0:03:00]}  Nf6 {[%clk 0:02:59]} 2. Nf3 {[%clk 0:02:59]}  e6 {[%clk 0:03:00]} 3. Nbd2 {[%clk 0:02:59]}  d5 {[%clk 0:02:52]} 4. e3 {[%clk 0:03:00]}  c5 {[%clk 0:02:52]} 5. c3 {[%clk 0:02:59]}  Nc6 {[%clk 0:02:52]} 6. Bd3 {[%clk 0:02:59]}  Bd6 {[%clk 0:02:52]} 7. O-O {[%clk 0:03:00]}  O-O {[%clk 0:02:52]} 8. dxc5 {[%clk 0:03:00]}  Bxc5 {[%clk 0:02:52]} 9. b4 {[%clk 0:03:00]}  Bd6 {[%clk 0:02:51]} 10. Bb2 {[%clk 0:03:00]}  e5 {[%clk 0:02:52]} 11. e4 {[%clk 0:03:00]}  dxe4 {[%clk 0:02:44]} 12. Nxe4 {[%clk 0:03:01]}  Nxe4 {[%clk 0:02:44]} 13. Bxe4 {[%clk 0:03:02]}  Qe7 {[%clk 0:02:45]} 14. a3 {[%clk 0:03:02]}  Be6 {[%clk 0:02:39]} 15. Qc2 {[%clk 0:02:55]}  f5 {[%clk 0:02:38]} 16. Bxc6 {[%clk 0:02:55]}  bxc6 {[%clk 0:02:39]} 17. c4 {[%clk 0:02:54]}  e4 {[%clk 0:02:33]} 18. Nd4 {[%clk 0:02:54]}  Bd7 {[%clk 0:02:33]} 19. c5 {[%clk 0:02:53]}  Bc7 {[%clk 0:02:33]} 20. Rad1 {[%clk 0:02:52]}  Rad8 {[%clk 0:02:30]} 21. Rfe1 {[%clk 0:02:50]}  Qh4 {[%clk 0:02:25]} 22. g3 {[%clk 0:02:49]}  Qh6 {[%clk 0:02:24]} 23. Bc1 {[%clk 0:02:42]}  Qg6 {[%clk 0:02:17]} 24. Ne2 {[%clk 0:02:39]}  Qf7 {[%clk 0:02:13]} 25. Bf4 {[%clk 0:02:38]}  Be6 {[%clk 0:02:09]} 26. Bxc7 {[%clk 0:02:37]}  Qxc7 {[%clk 0:02:10]} 27. Nf4 {[%clk 0:02:37]}  Bf7 {[%clk 0:02:10]} 28. h4 {[%clk 0:02:34]}  Rxd1 {[%clk 0:02:05]} 29. Rxd1 {[%clk 0:02:35]}  Rd8 {[%clk 0:02:06]} 30. a4 {[%clk 0:02:25]}  a5 {[%clk 0:02:02]} 31. Rxd8+ {[%clk 0:02:20]}  Qxd8 {[%clk 0:02:03]} 32. b5 {[%clk 0:02:20]}  cxb5 {[%clk 0:02:00]} 33. axb5 {[%clk 0:02:21]}  Qd4 {[%clk 0:01:28]} 34. c6 {[%clk 0:02:17]}  e3 {[%clk 0:01:28]} 35. c7 {[%clk 0:02:13]}  exf2+ {[%clk 0:01:27]} 36. Qxf2 {[%clk 0:02:06]}  Qd1+ {[%clk 0:01:27]} 37. Kh2 {[%clk 0:02:05]}  Qc1 {[%clk 0:01:27]} 38. b6 {[%clk 0:02:04]}  a4 {[%clk 0:01:23]} 39. Nd3 {[%clk 0:01:59]}  Qc4 {[%clk 0:00:41]} 40. Nc5 {[%clk 0:01:48]}  Be6 {[%clk 0:00:40]} 41. Nxe6 {[%clk 0:01:47]}  a3 {[%clk 0:00:35]} 42. b7 {[%clk 0:01:46]} 1-0


[Site "https://www.chess.com"]

[Event "Titled Tuesday Blitz November 07 Early 2023"]
[White "Toktomushev, Teimur"]
[Black "Godzwon, Iwo"]
[WhiteFideId "14176726"]
[BlackFideId "21802483"]
[WhiteElo "2529"]
[BlackElo "2681"]
[Result "0-1"]
[Round "6"]
[TimeControl "180+1"]
[Date "2023.11.07"]
[WhiteClock "0:00:00"]
[BlackClock "0:01:10"]
[Board "80"]

1. d4 {[%clk 0:03:00]}  d5 {[%clk 0:02:54]} 2. c4 {[%clk 0:02:58]}  c6 {[%clk 0:02:54]} 3. Nc3 {[%clk 0:02:52]}  Nf6 {[%clk 0:02:53]} 4. e3 {[%clk 0:02:23]}  e6 {[%clk 0:02:44]} 5. Nf3 {[%clk 0:02:22]}  Nbd7 {[%clk 0:02:44]} 6. Qc2 {[%clk 0:02:21]}  Bd6 {[%clk 0:02:44]} 7. Bd3 {[%clk 0:02:19]}  O-O {[%clk 0:02:45]} 8. O-O {[%clk 0:02:20]}  Qe7 {[%clk 0:02:32]} 9. h3 {[%clk 0:01:50]}  h6 {[%clk 0:02:22]} 10. c5 {[%clk 0:00:29]}  Bc7 {[%clk 0:02:20]} 11. e4 {[%clk 0:00:27]}  dxe4 {[%clk 0:02:21]} 12. Nxe4 {[%clk 0:00:28]}  Nxe4 {[%clk 0:02:18]} 13. Bxe4 {[%clk 0:00:29]}  e5 {[%clk 0:02:18]} 14. Re1 {[%clk 0:00:27]}  Kh8 {[%clk 0:02:06]} 15. b4 {[%clk 0:00:18]}  exd4 {[%clk 0:01:56]} 16. Bb2 {[%clk 0:00:16]}  Ne5 {[%clk 0:01:52]} 17. Nxd4 {[%clk 0:00:10]}  Qg5 {[%clk 0:01:52]} 18. Kh1 {[%clk 0:00:06]}  Qf4 {[%clk 0:01:43]} 19. g3 {[%clk 0:00:03]}  Qg5 {[%clk 0:01:40]} 20. Bf5 {[%clk 0:00:02]}  Nf3 {[%clk 0:01:31]} 21. Nxf3 {[%clk 0:00:02]}  Qxf5 {[%clk 0:01:31]} 22. Qxf5 {[%clk 0:00:02]}  Bxf5 {[%clk 0:01:32]} 23. Re7 {[%clk 0:00:02]}  Rac8 {[%clk 0:01:25]} 24. Rae1 {[%clk 0:00:02]}  Bxh3 {[%clk 0:01:22]} 25. Ne5 {[%clk 0:00:02]}  Kg8 {[%clk 0:01:18]} 26. Nd7 {[%clk 0:00:02]}  Rfd8 {[%clk 0:01:13]} 27. Ne5 {[%clk 0:00:02]}  Be6 {[%clk 0:01:12]} 28. f4 {[%clk 0:00:01]}  Re8 {[%clk 0:01:12]} 29. Rxe8+ {[%clk 0:00:01]}  Rxe8 {[%clk 0:01:12]} 30. Nd3 {[%clk 0:00:00]}  Bd5+ {[%clk 0:01:10]} 0-1


[Site "https://www.chess.com"]

[Event "Titled Tuesday Blitz November 07 Early 2023"]
[White "Dushyant Sharma"]
[Black "Ovetchkin, Roman"]
[WhiteFideId "25065130"]
[BlackFideId "4119991"]
[WhiteElo "2527"]
[BlackElo "2677"]
[Result "0-1"]
[Round "6"]
[TimeControl "180+1"]
[Date "2023.11.07"]
[WhiteClock "0:00:47"]
[BlackClock "0:00:38"]
[Board "81"]

1. e4 {[%clk 0:02:47]}  c6 {[%clk 0:02:59]} 2. d4 {[%clk 0:02:47]}  d5 {[%clk 0:03:00]} 3. exd5 {[%clk 0:02:47]}  cxd5 {[%clk 0:03:00]} 4. c3 {[%clk 0:02:46]}  Nf6 {[%clk 0:02:58]} 5. Bd3 {[%clk 0:02:47]}  Nc6 {[%clk 0:02:57]} 6. h3 {[%clk 0:02:48]}  g6 {[%clk 0:02:56]} 7. Nf3 {[%clk 0:02:48]}  Bf5 {[%clk 0:02:57]} 8. O-O {[%clk 0:02:49]}  Bg7 {[%clk 0:02:55]} 9. Bxf5 {[%clk 0:02:49]}  gxf5 {[%clk 0:02:54]} 10. Ne5 {[%clk 0:02:47]}  Qb6 {[%clk 0:02:29]} 11. f4 {[%clk 0:02:42]}  e6 {[%clk 0:02:20]} 12. Qb3 {[%clk 0:02:41]}  h5 {[%clk 0:02:10]} 13. Nd2 {[%clk 0:02:36]}  Qc7 {[%clk 0:01:59]} 14. Qd1 {[%clk 0:02:26]}  O-O-O {[%clk 0:01:51]} 15. b3 {[%clk 0:02:24]}  Kb8 {[%clk 0:01:51]} 16. Bb2 {[%clk 0:02:22]}  h4 {[%clk 0:01:48]} 17. Ndf3 {[%clk 0:02:18]}  Ne4 {[%clk 0:01:44]} 18. c4 {[%clk 0:02:17]}  Nxe5 {[%clk 0:01:40]} 19. fxe5 {[%clk 0:02:11]}  dxc4 {[%clk 0:01:39]} 20. bxc4 {[%clk 0:02:12]}  Qxc4 {[%clk 0:01:39]} 21. Rc1 {[%clk 0:02:05]}  Qd5 {[%clk 0:01:38]} 22. Qa4 {[%clk 0:02:03]}  Bh6 {[%clk 0:01:35]} 23. Rb1 {[%clk 0:02:02]}  Be3+ {[%clk 0:01:33]} 24. Kh2 {[%clk 0:02:02]}  Rc8 {[%clk 0:01:31]} 25. Ba3 {[%clk 0:01:58]}  Rc4 {[%clk 0:01:25]} 26. Qb3 {[%clk 0:01:56]}  Rc3 {[%clk 0:01:24]} 27. Qa4 {[%clk 0:01:52]}  Rg8 {[%clk 0:01:08]} 28. Rb5 {[%clk 0:01:23]}  Rxa3 {[%clk 0:01:03]} 29. Qb4 {[%clk 0:01:15]}  Rxa2 {[%clk 0:00:56]} 30. Ne1 {[%clk 0:00:59]}  Qxd4 {[%clk 0:00:40]} 31. Rxb7+ {[%clk 0:00:58]}  Ka8 {[%clk 0:00:40]} 32. Qe7 {[%clk 0:00:52]}  Qxe5+ {[%clk 0:00:38]} 33. Kh1 {[%clk 0:00:47]}  Ng3+ {[%clk 0:00:38]} 0-1


[Site "https://www.chess.com"]

[Event "Titled Tuesday Blitz November 07 Early 2023"]
[White "Bilan, Danila"]
[Black "Chinguun, Sumiya"]
[WhiteFideId "24161918"]
[BlackFideId "4902572"]
[WhiteElo "2518"]
[BlackElo "2673"]
[Result "0-1"]
[Round "6"]
[TimeControl "180+1"]
[Date "2023.11.07"]
[WhiteClock "0:00:03"]
[BlackClock "0:01:35"]
[Board "84"]

1. d4 {[%clk 0:02:43]}  Nf6 {[%clk 0:02:59]} 2. Nf3 {[%clk 0:02:43]}  g6 {[%clk 0:02:59]} 3. Bg5 {[%clk 0:02:42]}  Bg7 {[%clk 0:02:59]} 4. c3 {[%clk 0:02:43]}  O-O {[%clk 0:02:58]} 5. Nbd2 {[%clk 0:02:43]}  d5 {[%clk 0:02:58]} 6. e3 {[%clk 0:02:43]}  Nbd7 {[%clk 0:02:56]} 7. Bd3 {[%clk 0:02:38]}  Qe8 {[%clk 0:02:53]} 8. O-O {[%clk 0:02:34]}  e5 {[%clk 0:02:53]} 9. dxe5 {[%clk 0:02:31]}  Nxe5 {[%clk 0:02:53]} 10. Nxe5 {[%clk 0:02:31]}  Qxe5 {[%clk 0:02:53]} 11. Nf3 {[%clk 0:02:25]}  Qe7 {[%clk 0:02:53]} 12. h3 {[%clk 0:02:24]}  h6 {[%clk 0:02:52]} 13. Bh4 {[%clk 0:02:24]}  c5 {[%clk 0:02:52]} 14. c4 {[%clk 0:02:10]}  Be6 {[%clk 0:02:49]} 15. cxd5 {[%clk 0:02:05]}  Bxd5 {[%clk 0:02:49]} 16. e4 {[%clk 0:01:40]}  Bxe4 {[%clk 0:02:40]} 17. Bxf6 {[%clk 0:01:28]}  Bxf6 {[%clk 0:02:38]} 18. Re1 {[%clk 0:01:28]}  Bxf3 {[%clk 0:02:35]} 19. Qxf3 {[%clk 0:01:21]}  Qd6 {[%clk 0:02:35]} 20. Rad1 {[%clk 0:01:12]}  Bd4 {[%clk 0:02:33]} 21. b3 {[%clk 0:01:03]}  b6 {[%clk 0:02:30]} 22. Bc4 {[%clk 0:00:59]}  Rad8 {[%clk 0:02:30]} 23. a4 {[%clk 0:00:49]}  Qf6 {[%clk 0:02:30]} 24. Qxf6 {[%clk 0:00:44]}  Bxf6 {[%clk 0:02:30]} 25. g3 {[%clk 0:00:39]}  Kg7 {[%clk 0:02:29]} 26. Kg2 {[%clk 0:00:39]}  h5 {[%clk 0:02:29]} 27. Kf3 {[%clk 0:00:38]}  Rd4 {[%clk 0:02:29]} 28. Rxd4 {[%clk 0:00:33]}  cxd4 {[%clk 0:02:23]} 29. Ke2 {[%clk 0:00:26]}  h4 {[%clk 0:02:17]} 30. g4 {[%clk 0:00:16]}  Rc8 {[%clk 0:02:13]} 31. Kd3 {[%clk 0:00:15]}  a6 {[%clk 0:02:12]} 32. Kd2 {[%clk 0:00:06]}  b5 {[%clk 0:02:10]} 33. axb5 {[%clk 0:00:07]}  axb5 {[%clk 0:02:11]} 34. Bxb5 {[%clk 0:00:06]}  Rc3 {[%clk 0:02:09]} 35. Bd3 {[%clk 0:00:05]}  Bg5+ {[%clk 0:02:07]} 36. Ke2 {[%clk 0:00:05]}  Rxb3 {[%clk 0:02:07]} 37. Rb1 {[%clk 0:00:05]}  Ra3 {[%clk 0:02:06]} 38. Rb7 {[%clk 0:00:05]}  Kf8 {[%clk 0:01:52]} 39. Bc4 {[%clk 0:00:04]}  Rxh3 {[%clk 0:01:51]} 40. Rxf7+ {[%clk 0:00:04]}  Ke8 {[%clk 0:01:52]} 41. Rg7 {[%clk 0:00:04]}  Bf4 {[%clk 0:01:41]} 42. Rxg6 {[%clk 0:00:04]}  Rh1 {[%clk 0:01:40]} 43. Rg8+ {[%clk 0:00:03]}  Ke7 {[%clk 0:01:39]} 44. Rh8 {[%clk 0:00:04]}  h3 {[%clk 0:01:39]} 45. Kf3 {[%clk 0:00:04]}  Be5 {[%clk 0:01:38]} 46. Rh7+ {[%clk 0:00:05]}  Kf8 {[%clk 0:01:38]} 47. g5 {[%clk 0:00:05]}  h2 {[%clk 0:01:37]} 48. g6 {[%clk 0:00:06]}  Rg1 {[%clk 0:01:37]} 49. Rf7+ {[%clk 0:00:05]}  Ke8 {[%clk 0:01:37]} 50. Bb5+ {[%clk 0:00:05]}  Kd8 {[%clk 0:01:37]} 51. Rc7 {[%clk 0:00:03]}  h1=Q+ {[%clk 0:01:35]} 0-1


[Site "https://www.chess.com"]